bitfinex/quotes_SOLUSD_20250226
["timestamp","ask_amount","ask_price","bid_price","bid_amount"]
[1740561808433,20.0,141.15,141.13,70.06643777]
[1740561808604,20.0,141.15,141.12,0.063]
[1740561810219,81.1,141.18,141.12,0.063]
[1740561810420,89.7338,141.2,141.12,7.149]
[1740561810817,20.0,141.17,141.12,7.149]
[1740561812131,20.0,141.17,141.12,0.063]
[1740561812516,7.0841,141.16,141.12,0.063]
[1740561813528,105.8944,141.16,141.12,0.063]
[1740561815829,88.1841,141.16,141.12,0.063]
[1740561816421,3.49626757,141.15,141.12,0.063]
[1740561817128,10.58096757,141.15,141.12,0.063]
[1740561817455,28.29256757,141.15,141.12,0.063]
[1740561817839,20.0,141.13,141.12,0.063]
[1740561819043,27.0856,141.13,141.12,0.063]
[1740561819735,3.49626757,141.15,141.12,0.063]
[1740561820034,10.58106757,141.15,141.12,0.063]
[1740561823047,23.49626757,141.15,141.12,0.063]
[1740561823242,20.0,141.16,141.12,0.063]
[1740561823448,7.0835,141.18,141.12,0.063]
[1740561823649,7.0835,141.18,141.12,70.12943777]
[1740561826440,24.7913,141.18,141.12,70.12943777]
[1740561828152,3.55915736,141.17,141.12,70.12943777]
[1740561828524,10.64325736,141.17,141.12,70.12943777]
[1740561828932,7.0821,141.2,141.12,78.72753777]
[1740561829338,20.0,141.17,141.12,71.64163777]
[1740561830732,27.0838,141.17,141.12,71.64163777]
[1740561832052,3.61219227,141.18,141.12,78.72773777]
[1740561832257,0.03,141.19,141.12,78.72773777]
[1740561832944,3.62940324,141.19,141.12,78.72773777]
[1740561833736,10.71210324,141.19,141.12,78.72773777]
[1740561834058,10.71210324,141.19,141.12,214.92773777]
[1740561838955,0.03,141.19,141.12,214.92773777]
[1740561840252,0.03,141.19,141.12,257.62773777]
[1740561840764,0.03,141.19,141.12,275.34313777]
[1740561842774,0.03,141.19,141.14,7.0851]
[1740561846269,20.0,141.18,141.13,70.06643777]
[1740561847346,20.0,141.18,141.12,1.5752]
[1740561848453,7.0836,141.17,141.12,1.5752]
[1740561848980,10.7204427,141.17,141.12,1.5752]
[1740561849369,109.5295427,141.17,141.12,0.063]
[1740561849686,20.0,141.13,141.12,0.063]
[1740561850566,27.0856,141.13,141.12,0.063]
[1740561855078,30.63510663,141.13,141.12,0.063]
[1740561856587,81.1,141.12,141.1,0.063]
[1740561856885,101.74964886,141.11,141.1,0.0001]
[1740561857073,19.64964886,141.07,141.05,0.063]
[1740561857276,38.64964886,141.04,141.03,0.063]
[1740561857779,20.0,141.04,141.03,0.063]
[1740561858460,27.0901,141.04,141.03,0.063]
[1740561860968,45.73974886,141.04,141.03,0.063]
[1740561861380,46.73974886,141.04,141.03,0.063]
[1740561861891,127.83974886,141.04,141.03,0.063]
[1740561862190,131.30809719,141.04,141.03,0.063]
[1740561862504,130.30809719,141.04,141.03,0.063]
[1740561864089,111.65844833,141.04,141.03,0.063]
[1740561864976,131.30809719,141.04,141.03,0.063]
[1740561865184,149.03349719,141.04,140.97,70.12943777]
[1740561866067,28.28384833,141.04,140.97,0.063]
[1740561866285,10.55844833,141.04,140.98,8.0883]
[1740561866473,10.55844833,141.04,141.03,0.03]
[1740561866680,30.55844833,141.04,141.03,0.03]
[1740561867513,49.20809719,141.04,141.03,0.03]
[1740561867676,20.0,141.01,140.97,0.063]
[1740561868008,101.1,141.01,140.97,0.063]
[1740561869101,10.55864833,141.04,140.97,70.12943777]
[1740561869407,3.46834833,141.04,140.97,70.12943777]
[1740561869706,29.20819719,141.04,140.97,70.12943777]
[1740561869903,20.0,141.01,140.97,0.063]
[1740561870766,20.0,140.99,140.97,0.063]
[1740561871778,7.0921,141.0,140.97,0.063]
[1740561872476,7.0916,141.01,140.97,0.063]
[1740561872795,20.0,140.98,140.97,0.063]
[1740561873903,27.0932,140.98,140.97,0.063]
[1740561875798,30.57993459,140.98,140.97,0.063]
[1740561876777,27.0932,140.98,140.97,0.063]
[1740561877596,20.0,140.98,140.97,0.063]
[1740561878580,27.0932,140.98,140.97,0.063]
[1740561879203,20.0,140.98,140.97,0.063]
[1740561882509,27.0928,140.99,140.97,0.063]
[1740561882688,20.0,140.99,140.97,0.063]
[1740561885213,27.0927,140.99,140.97,0.063]
[1740561886099,20.0,140.99,140.97,0.063]
[1740561888221,20.0,140.99,140.94,0.03]
[1740561888222,2.0,140.96,140.94,0.03]
[1740561888400,25.74434886,140.95,140.92,0.063]
[1740561888600,20.0,140.93,140.92,0.063]
[1740561890328,20.0,140.94,140.92,0.063]
[1740561890500,27.0953,140.94,140.92,0.063]
[1740561909243,101.74964886,140.93,140.92,0.063]
[1740561910525,108.84534886,140.93,140.92,0.063]
[1740561910934,111.70655058,140.93,140.92,0.063]
[1740561912349,7.0957,140.93,140.91,0.03]
[1740561913839,0.063,140.94,140.91,0.03]
[1740561914046,20.0,140.92,140.91,0.03]
[1740561914252,0.063,140.94,140.91,0.03]
[1740561914462,0.063,140.94,140.91,70.09643777]
[1740561915555,20.063,140.94,140.91,70.09643777]
[1740561917055,0.063,140.94,140.91,77.19293777]
[1740561917356,0.063,140.94,140.92,6.7]
[1740561918556,0.063,140.94,140.92,220.06233777]
[1740561919543,0.063,140.99,140.93,26.61244886]
[1740561919742,0.063,140.99,140.93,232.87888663]
[1740561920762,0.063,140.99,140.94,24.8332]
[1740561920940,0.063,140.99,140.94,7.0952]
[1740561921353,0.063,140.99,140.95,18.64964886]
[1740561922150,0.063,140.99,140.95,224.91608663]
[1740561922678,0.063,140.99,140.96,7.0942]
[1740561922967,0.063,140.99,140.97,6.72]
[1740561923764,0.063,140.99,140.97,13.8133]
[1740561926045,0.063,140.99,140.97,220.07973777]
[1740561928075,0.063,140.99,140.97,212.98643777]
[1740561928390,20.0,140.98,140.97,70.06643777]
[1740561928742,20.0,140.98,140.92,212.96643777]
[1740561929082,20.0,140.98,140.92,76.76643777]
[1740561929284,20.0,140.97,140.92,70.06643777]
[1740561929577,20.0,140.96,140.91,0.03]
[1740561930386,7.0947,140.95,140.91,0.03]
[1740561932606,7.0942,140.96,140.91,0.03]
[1740561932749,20.0,140.96,140.91,0.03]
[1740561933170,27.0942,140.96,140.91,0.03]
[1740561934390,20.0,140.96,140.91,0.03]
[1740561934998,20.0,140.96,140.91,70.09643777]
[1740561936497,20.0,140.96,140.92,7.0962]
[1740561936687,20.063,140.96,140.92,7.0962]
[1740561936997,0.063,140.96,140.92,77.16263777]
[1740561937197,0.063,140.96,140.92,213.36263777]
[1740561938295,0.063,140.96,140.94,7.0952]
[1740561938498,0.063,140.96,140.95,7.7842]
[1740561939211,0.063,140.96,140.95,26.43384886]
[1740561939379,0.063,140.96,140.95,232.70028663]
[1740561940520,0.063,140.96,140.95,282.43498663]
[1740561940691,0.063,140.96,140.95,214.05063777]
[1740561940899,0.063,140.96,140.95,70.06643777]
[1740561950119,0.063,140.96,140.91,82.80823777]
[1740561950320,20.0,140.95,140.91,70.09643777]
[1740561951627,20.0,140.95,140.91,0.03]
[1740561951628,7.0957,140.93,140.91,0.03]
[1740561952526,8.0957,140.93,140.91,0.03]
[1740561952728,7.0957,140.93,140.91,0.03]
[1740561953225,18.64964886,140.92,140.91,0.03]
[1740561953400,25.74584886,140.92,140.91,0.03]
[1740561954418,10.59323926,140.92,140.91,0.03]
[1740561960710,11.59323926,140.92,140.91,0.03]
[1740561961032,10.59323926,140.92,140.91,0.03]
[1740561961625,11.59323926,140.92,140.91,0.03]
[1740561961829,10.59323926,140.92,140.91,0.03]
[1740561964217,29.24288812,140.92,140.91,0.03]
[1740561965415,18.64964886,140.91,140.9,0.063]
[1740561965729,18.64964886,140.91,140.89,0.0001]
[1740561965730,20.64964886,140.91,140.89,0.0001]
[1740561966437,38.64964886,140.89,140.88,0.0001]
[1740561967522,27.0977,140.89,140.88,0.0001]
[1740561968407,20.0,140.89,140.88,0.0001]
[1740561968612,7.0968,140.91,140.88,0.0001]
[1740561968837,20.0,140.89,140.88,0.0001]
[1740561970242,27.0972,140.9,140.88,0.0001]
[1740561971324,20.0,140.89,140.88,0.0001]
[1740561972030,0.32968964,140.94,140.88,70.06653777]
[1740561972348,0.063,140.94,140.88,206.26653777]
[1740561972546,7.1582,140.94,140.88,206.26653777]
[1740561973341,20.0,140.93,140.88,206.26653777]
[1740561973648,0.063,140.94,140.89,7.0977]
[1740561974313,20.0,140.93,140.92,0.56864628]
[1740561975541,0.063,140.94,140.93,0.56864628]
[1740561976148,7.1582,140.94,140.93,0.56864628]
[1740561977241,0.063,140.94,140.93,0.56864628]
[1740561977445,0.063,140.94,140.93,70.63508405]
[1740561981664,20.0,140.91,140.87,0.03]
[1740561981956,7.0972,140.9,140.87,0.03]
[1740561982257,7.0972,140.9,140.89,0.56864628]
[1740561982439,26.74684886,140.9,140.87,0.03]
[1740561983038,26.74684886,140.9,140.88,0.42658471]
[1740561983360,26.74684886,140.9,140.89,0.56864628]
[1740561983532,26.74684886,140.9,140.88,0.0001]
[1740561983732,7.0972,140.9,140.88,0.0001]
[1740561985057,26.74684886,140.9,140.87,0.0101]
[1740561985266,20.0,140.88,140.87,0.0101]
[1740561985472,20.0,140.87,140.83,0.03]
[1740561985773,20.0,140.85,140.83,0.03]
[1740561986446,20.0,140.85,140.84,0.42648471]
[1740561986646,20.0,140.85,140.83,0.03]
[1740561986852,20.0,140.85,140.84,0.56864628]
[1740561987059,27.0997,140.85,140.84,0.56864628]
[1740561987232,27.0997,140.85,140.84,0.28432314]
[1740561987430,27.0997,140.85,140.84,0.56864628]
[1740561987632,27.0997,140.85,140.84,0.63972706]
[1740561988063,27.0997,140.85,140.84,0.78188863]
[1740561988963,30.66864251,140.85,140.84,0.78188863]
[1740561990236,27.0997,140.85,140.84,0.78188863]
[1740561990573,3.51231524,140.87,140.86,0.14216157]
[1740561990773,7.0977,140.89,140.86,0.14216157]
[1740561991652,25.842,140.89,140.86,0.14216157]
[1740561991849,20.0,140.87,140.86,0.14216157]
[1740561992556,27.0987,140.87,140.86,0.14216157]
[1740561994567,27.02390883,140.87,140.86,0.14216157]
[1740561995067,64.42035769,140.87,140.84,0.03]
[1740561995364,46.77070883,140.87,140.84,0.03]
[1740561995967,45.77070883,140.87,140.84,0.03]
[1740561996264,46.77070883,140.87,140.84,0.03]
[1740561996767,45.77070883,140.87,140.84,0.03]
[1740561996953,64.42035769,140.87,140.86,0.14222314]
[1740561997151,64.42035769,140.87,140.84,0.03]
[1740561997967,65.42035769,140.87,140.84,0.03]
[1740561998263,64.42035769,140.87,140.84,0.03]
[1740561998462,44.77070883,140.87,140.84,0.03]
[1740561999057,24.8455,140.87,140.84,0.03]
[1740561999261,24.8455,140.87,140.86,0.14216157]
[1740561999564,44.8455,140.87,140.86,0.14216157]
[1740562005769,44.9085,140.87,140.86,0.14216157]
[1740562007873,44.9085,140.87,140.86,0.56864628]
[1740562009680,20.063,140.87,140.86,0.56864628]
[1740562009881,0.063,140.87,140.86,0.56864628]
[1740562010465,7.1617,140.87,140.86,0.56864628]
[1740562010951,0.063,140.87,140.86,0.56864628]
[1740562014495,0.063,140.87,140.86,84.23428405]
[1740562014651,0.063,140.87,140.86,77.13508405]
[1740562016151,0.063,140.87,140.86,84.23428405]
[1740562017883,0.063,140.87,140.86,77.13508405]
[1740562018256,0.063,140.87,140.86,84.23428405]
[1740562018455,0.063,140.87,140.86,239.08393291]
[1740562018785,0.063,140.87,140.86,239.11393291]
[1740562018976,0.063,140.94,140.89,0.28432314]
[1740562019280,0.063,140.94,140.93,0.56864628]
[1740562020574,0.063,140.94,140.93,70.8483264]
[1740562021467,0.063,140.94,140.93,0.63972706]
[1740562021669,20.063,140.94,140.93,0.21324235]
[1740562021870,19.64964886,140.93,140.91,0.21324235]
[1740562022284,20.64964886,140.93,140.91,0.21324235]
[1740562022592,19.64964886,140.91,140.86,0.03]
[1740562023077,20.64964886,140.91,140.87,0.56864628]
[1740562023486,24.8402,140.9,140.86,0.03]
[1740562024359,24.8402,140.9,140.86,0.24324235]
[1740562024558,7.0972,140.9,140.89,0.28432314]
[1740562024873,7.0972,140.9,140.89,0.56864628]
[1740562025585,115.34584886,140.92,140.91,0.56864628]
[1740562026079,113.34584886,140.92,140.91,0.56864628]
[1740562026379,114.34584886,140.92,140.91,0.56864628]
[1740562027588,113.34584886,140.92,140.91,0.56864628]
[1740562028494,114.34584886,140.92,140.91,0.56864628]
[1740562028675,115.34584886,140.92,140.91,0.56864628]
[1740562028983,20.0,140.88,140.86,0.24324235]
[1740562029585,20.0,140.87,140.86,0.24324235]
[1740562030666,27.0987,140.87,140.86,0.24324235]
[1740562030988,18.64964886,140.86,140.84,0.03]
[1740562031165,18.64964886,140.86,140.84,0.17216157]
[1740562031371,18.64964886,140.86,140.85,0.56864628]
[1740562032268,44.8455,140.87,140.86,0.14216157]
[1740562033766,27.0987,140.87,140.86,0.14216157]
[1740562034098,7.0984,140.88,140.86,0.14216157]
[1740562034969,20.0,140.87,140.86,0.14216157]
[1740562035572,27.0984,140.88,140.86,0.14216157]
[1740562035778,20.0,140.88,140.86,0.14216157]
[1740562035977,7.0967,140.91,140.88,0.14216157]
[1740562036175,7.0957,140.93,140.88,0.14216157]
[1740562037284,20.0,140.91,140.88,0.14216157]
[1740562038997,0.063,140.94,140.9,0.14216157]
[1740562039398,20.063,140.94,140.9,0.14216157]
[1740562039895,20.063,140.94,140.92,0.14216157]
[1740562040103,0.063,140.94,140.92,0.14216157]
[1740562041299,20.063,140.94,140.92,0.14216157]
[1740562042186,20.063,140.94,140.89,1.5888]
[1740562042386,20.0,140.93,140.92,0.21324235]
[1740562042588,20.0,140.93,140.92,0.78188863]
[1740562042897,20.063,140.94,140.93,0.56864628]
[1740562043611,27.1582,140.94,140.93,0.56864628]
[1740562043813,20.0,140.9,140.86,6.392]
[1740562044408,20.0,140.89,140.86,0.03]
[1740562044781,20.0,140.89,140.88,0.14216157]
[1740562045589,27.0977,140.89,140.88,0.14216157]
[1740562046685,27.0977,140.89,140.88,0.56864628]
[1740562048187,20.0,140.89,140.88,0.56864628]
[1740562048384,7.0974,140.9,140.88,0.56864628]
[1740562048702,7.0963,140.92,140.91,0.56864628]
[1740562049078,7.36248964,140.93,140.92,0.56864628]
[1740562050408,0.063,140.94,140.93,0.56864628]
[1740562050699,7.1582,140.94,140.93,0.56864628]
[1740562050906,0.063,140.94,140.93,0.56864628]
[1740562057708,0.063,140.94,140.93,0.14216157]
[1740562058008,0.063,140.94,140.9,0.42648471]
[1740562058305,0.063,140.94,140.93,0.28432314]
[1740562058506,19.9793385,140.94,140.87,70.06643777]
[1740562058693,101.0793385,140.94,140.86,6.68324235]
[1740562059289,101.0793385,140.94,140.88,0.14216157]
[1740562059508,101.0793385,140.94,140.86,6.68324235]
[1740562060010,7.0957,140.93,140.88,0.14216157]
[1740562060314,24.835,140.93,140.88,0.14216157]
[1740562060510,18.64964886,140.92,140.88,0.14216157]
[1740562061996,7.0967,140.91,140.88,0.14216157]
[1740562062201,7.0964,140.92,140.88,0.14216157]
[1740562062510,0.26668964,140.93,140.88,0.14216157]
[1740562062688,7.36238964,140.93,140.88,0.14216157]
[1740562063594,0.063,140.94,140.9,0.14216157]
[1740562064416,0.063,140.94,140.92,0.14216157]
[1740562073627,0.063,140.94,140.93,0.56864628]
[1740562074817,0.063,140.94,140.93,77.73078405]
[1740562075019,0.063,140.94,140.93,70.63508405]
[1740562087155,0.063,140.94,140.93,77.73078405]
[1740562089555,0.063,140.94,140.93,70.63508405]
[1740562092742,0.063,140.94,140.91,0.28432314]
[1740562093143,0.063,140.94,140.93,0.56864628]
[1740562097038,20.063,140.94,140.93,0.56864628]
[1740562097259,7.0957,140.93,140.86,76.62968012]
[1740562097558,7.0957,140.93,140.87,0.56864628]
[1740562098263,7.0957,140.93,140.87,0.42648471]
[1740562098657,7.0957,140.93,140.92,0.56864628]
[1740562101758,0.063,140.94,140.93,0.56864628]
[1740562101955,7.1582,140.94,140.93,0.56864628]
[1740562107969,25.80784886,140.94,140.93,0.56864628]
[1740562119782,26.80784886,140.94,140.93,0.56864628]
[1740562120192,26.80784886,140.94,140.86,0.24324235]
[1740562120193,20.0,140.9,140.86,0.24324235]
[1740562120365,18.64964886,140.89,140.86,0.24324235]
[1740562120552,20.0,140.87,140.86,0.24324235]
[1740562121487,27.0987,140.87,140.86,0.24324235]
[1740562122286,27.0987,140.87,140.86,0.81188863]
[1740562123477,29.97872626,140.87,140.86,0.81188863]
[1740562123985,48.62837512,140.87,140.86,0.81188863]
[1740562124501,48.62837512,140.87,140.86,2.706e-05]
[1740562124784,48.62837512,140.87,140.84,0.03]
[1740562124785,18.64964886,140.86,140.84,0.03]
[1740562125665,7.0997,140.85,140.84,0.03]
[1740562126067,103.98002626,140.87,140.84,0.03]
[1740562126374,7.0994,140.86,140.84,0.03]
[1740562126685,7.0994,140.86,140.85,0.56864628]
[1740562127680,25.74904886,140.86,140.85,0.56864628]
[1740562127873,25.74904886,140.86,140.85,0.42648471]
[1740562128080,25.74904886,140.86,140.85,0.56864628]
[1740562128884,18.64964886,140.85,140.84,0.17216157]
[1740562129186,99.74964886,140.85,140.84,0.17216157]
[1740562129387,99.74964886,140.85,140.84,0.31432314]
[1740562129595,99.74964886,140.85,140.84,0.59864628]
[1740562129781,106.84934886,140.85,140.84,0.59864628]
[1740562130305,106.84934886,140.85,140.84,0.45648471]
[1740562130894,106.84934886,140.85,140.84,0.59864628]
[1740562131196,107.84934886,140.85,140.84,0.31432314]
[1740562131404,107.84934886,140.85,140.84,2.314e-05]
[1740562131591,107.84934886,140.85,140.82,0.03]
[1740562131967,107.84934886,140.85,140.82,0.17216157]
[1740562133385,107.84934886,140.85,140.83,0.31432314]
[1740562133586,107.84934886,140.85,140.84,0.14216157]
[1740562133789,107.84934886,140.85,140.83,0.31432314]
[1740562135288,38.64964886,140.83,140.82,0.03]
[1740562136395,45.75034886,140.83,140.82,0.03]
[1740562137307,45.75034886,140.83,140.82,0.59864628]
[1740562138385,27.1007,140.83,140.82,0.59864628]
[1740562146989,2.82827241,140.87,140.83,0.56864628]
[1740562147298,20.0,140.84,140.83,0.56864628]
[1740562147887,7.0992,140.86,140.83,7.20314628]
[1740562148996,24.9085,140.87,140.83,7.20314628]
[1740562158213,7.1617,140.87,140.83,7.20314628]
[1740562158406,7.1617,140.87,140.83,8.82364628]
[1740562160342,0.063,140.87,140.83,8.82364628]
[1740562164650,0.063,140.87,140.83,85.99068405]
[1740562164945,0.063,140.87,140.83,92.21068405]
[1740562166137,0.063,140.87,140.83,84.96792248]
[1740562166320,0.063,140.87,140.83,14.475]
[1740562166517,0.063,140.87,140.84,0.56864628]
[1740562168055,0.063,140.87,140.84,7.66874628]
[1740562168861,0.063,140.87,140.84,77.73518405]
[1740562170921,0.063,140.87,140.84,70.63508405]
[1740562171930,0.063,140.87,140.84,70.06643777]
[1740562172234,0.063,140.87,140.85,0.14216157]
[1740562172431,0.063,140.87,140.84,0.14216157]
[1740562172827,20.063,140.87,140.86,0.14216157]
[1740562175170,27.1617,140.87,140.86,0.14216157]
[1740562178272,20.063,140.87,140.86,0.14216157]
[1740562178470,0.063,140.87,140.86,7.66784628]
[1740562178641,0.063,140.87,140.86,77.73428405]
[1740562180568,0.063,140.87,140.86,91.94598405]
[1740562181148,0.063,140.87,140.86,84.84678405]
[1740562181550,0.063,140.87,140.86,91.94598405]
[1740562182975,0.063,140.87,140.86,84.84678405]
[1740562184042,0.063,140.87,140.86,91.94598405]
[1740562187475,0.063,140.87,140.86,14.78034628]
[1740562187690,0.063,140.87,140.83,212.58123777]
[1740562187883,0.063,140.87,140.83,76.38123777]
[1740562188456,0.063,140.87,140.84,0.56864628]
[1740562188678,0.063,140.87,140.84,0.14216157]
[1740562189060,0.063,140.87,140.86,0.14216157]
[1740562189889,0.063,140.87,140.86,0.56864628]
[1740562196968,0.063,140.87,140.83,0.03]
[1740562197284,20.0,140.86,140.83,0.03]
[1740562197667,20.0,140.84,140.83,0.03]
[1740562198071,20.0,140.84,140.83,0.59864628]
[1740562199283,27.1002,140.84,140.83,0.31432314]
[1740562199592,45.74984886,140.84,140.83,0.03]
[1740562200175,126.84984886,140.84,140.83,0.03]
[1740562200397,127.84984886,140.84,140.83,0.0001]
[1740562200561,19.64964886,140.83,140.82,0.0001]
[1740562200762,25.86964886,140.83,140.81,0.14216157]
[1740562201267,7.1012,140.82,140.81,0.14216157]
[1740562201983,88.2012,140.82,140.81,0.14216157]
[1740562204278,88.2012,140.82,140.81,0.56864628]
[1740562205663,106.85084886,140.82,140.81,0.56864628]
[1740562205869,106.85084886,140.82,140.81,0.28432314]
[1740562206084,106.85084886,140.82,140.81,0.56864628]
[1740562206382,88.2012,140.82,140.81,0.56864628]
[1740562206566,13.3208,140.83,140.82,0.56864628]
[1740562207790,7.1008,140.83,140.82,0.56864628]
[1740562210586,0.26668964,140.86,140.83,0.14216157]
[1740562210788,7.0999,140.85,140.83,0.14216157]
[1740562211490,0.063,140.87,140.83,0.14216157]
[1740562211673,7.1619,140.87,140.83,0.14216157]
[1740562212277,0.063,140.87,140.83,0.14216157]
[1740562213502,0.063,140.87,140.85,0.14216157]
[1740562221912,0.063,140.87,140.81,206.29643777]
[1740562222211,0.063,140.87,140.81,0.03]
[1740562222385,0.063,140.87,140.82,0.56864628]
[1740562222702,0.063,140.87,140.82,70.63508405]
[1740562223795,0.063,140.87,140.84,0.56864628]
[1740562226498,0.063,140.87,140.86,0.56864628]
[1740562228516,0.063,140.87,140.86,7.66784628]
[1740562229615,0.063,140.87,140.86,0.56864628]
[1740562231126,20.063,140.87,140.86,0.28432314]
[1740562231289,20.063,140.87,140.81,0.03]
[1740562231493,18.64964886,140.85,140.81,0.03]
[1740562231826,99.74964886,140.85,140.81,0.03]
[1740562232007,105.98964886,140.85,140.81,0.03]
[1740562232726,7.1002,140.84,140.82,0.56864628]
[1740562234564,20.0,140.86,140.82,0.56864628]
[1740562234725,27.0994,140.86,140.82,0.56864628]
[1740562237965,125.9475,140.86,140.82,0.56864628]
[1740562238442,20.0,140.83,140.82,0.42648471]
[1740562238849,27.1007,140.83,140.82,0.56864628]
[1740562239833,27.1007,140.83,140.82,0.14216157]
[1740562240252,27.1007,140.83,140.82,0.56864628]
[1740562241257,45.75034886,140.83,140.82,0.56864628]
[1740562241439,18.64964886,140.82,140.81,0.0001]
[1740562241633,18.64964886,140.82,140.81,0.42658471]
[1740562242438,99.74964886,140.82,140.81,0.42658471]
[1740562242637,99.74964886,140.82,140.8,0.14216157]
[1740562242838,18.64964886,140.8,140.77,0.03]
[1740562243954,88.2017,140.81,140.77,0.03]
[1740562244635,88.2017,140.81,140.78,0.28432314]
[1740562244834,88.2017,140.81,140.78,0.56864628]
[1740562245047,81.1,140.81,140.78,0.56864628]
[1740562245653,81.1,140.85,140.78,7.67174628]
[1740562245861,81.163,140.87,140.8,7.02084628]
[1740562246061,0.063,140.87,140.8,77.08728405]
[1740562246240,20.0,140.86,140.8,77.08728405]
[1740562247247,20.0,140.86,140.82,0.56864628]
[1740562247448,20.0,140.86,140.82,6.82864628]
[1740562247978,0.063,140.87,140.82,213.09508405]
[1740562248150,0.063,140.87,140.84,0.56864628]
[1740562248336,0.063,140.87,140.84,70.63508405]
[1740562248540,0.063,140.87,140.86,0.56864628]
[1740562248843,0.063,140.87,140.86,70.63508405]
[1740562254640,0.063,140.87,140.86,70.06643777]
[1740562255050,0.063,140.87,140.86,70.63508405]
[1740562255262,0.063,140.87,140.86,70.06643777]
[1740562255472,0.063,140.87,140.86,70.63508405]
[1740562255672,0.063,140.87,140.86,0.56864628]
[1740562257163,0.063,140.87,140.81,212.55573777]
[1740562257362,0.063,140.87,140.81,82.61573777]
[1740562257566,0.063,140.87,140.83,0.14216157]
[1740562257964,7.1617,140.87,140.83,0.14216157]
[1740562258474,24.9085,140.87,140.83,0.14216157]
[1740562258768,24.9085,140.87,140.82,0.28432314]
[1740562259063,24.9085,140.87,140.86,0.28432314]
[1740562259272,24.9085,140.87,140.86,0.56864628]
[1740562260962,47.06686569,140.87,140.81,70.06643777]
[1740562261161,18.64964886,140.86,140.79,1.78514235]
[1740562261357,18.64964886,140.86,140.79,0.21324235]
[1740562261871,20.0,140.82,140.79,0.21324235]
[1740562262173,7.1022,140.8,140.79,0.21324235]
[1740562262561,7.1022,140.8,140.78,0.03]
[1740562262960,7.1022,140.8,140.79,0.56864628]
[1740562264154,7.1022,140.8,140.79,0.28432314]
[1740562264568,7.1022,140.8,140.79,0.56864628]
[1740562264863,88.2019,140.81,140.8,0.56864628]
[1740562265069,81.1,140.81,140.8,0.56864628]
[1740562267649,7.1011,140.83,140.82,0.56864628]
[1740562267869,7.0992,140.86,140.85,0.42648471]
[1740562268575,29.26676129,140.86,140.85,0.42648471]
[1740562268963,29.26676129,140.86,140.85,0.56864628]
[1740562269158,29.26676129,140.86,140.85,0.42648471]
[1740562269472,29.26676129,140.86,140.85,0.56864628]
[1740562269775,29.26676129,140.86,140.85,0.42648471]
[1740562271146,29.26676129,140.86,140.85,0.56864628]
[1740562274476,10.61711243,140.86,140.85,0.56864628]
[1740562274862,7.0992,140.86,140.85,0.56864628]
[1740562275079,7.1618,140.87,140.86,0.56864628]
[1740562275377,0.063,140.87,140.86,0.56864628]
[1740562275583,0.063,140.87,140.86,2.16244628]
[1740562276164,0.063,140.87,140.86,0.56864628]
[1740562278894,0.063,140.87,140.86,0.59864628]
[1740562281961,0.063,140.87,140.86,0.03]
[1740562282159,20.063,140.87,140.86,0.03]
[1740562282791,27.1617,140.87,140.86,0.03]
[1740562285182,27.1617,140.87,140.86,0.59864628]
[1740562285564,20.063,140.87,140.86,0.59864628]
[1740562285768,0.063,140.87,140.86,0.59864628]
[1740562286281,0.063,140.87,140.86,70.66508405]
[1740562286576,0.063,140.87,140.86,77.00838405]
[1740562289297,0.063,140.87,140.86,70.66508405]
[1740562289791,0.063,140.87,140.86,70.23859934]
[1740562289968,0.063,140.87,140.86,0.45648471]
[1740562290291,0.063,140.87,140.86,0.59864628]
[1740562290870,0.063,140.87,140.86,0.31432314]
[1740562291070,0.063,140.87,140.86,0.45648471]